Cogmind - Beta 15 --- EXPLORER MODE // 2025.10.19 @ 05:54:41 Player: time Result: Destroyed by D-53 Grenadier with Mini Grenade Launcher Performance ------------- Evolutions (0) 0 Regions Visited (0) 0 Robots Destroyed (2) 10 Value Destroyed (14) 14 Prototype IDs (0) 0 Alien Tech Used (0) 0 Bonus (0) 0 TOTAL SCORE: 24 Bonus ------- None Cogmind --------- Core Integrity 0/250 Matter 283/300 Energy 91/100 System Corruption 0% Temperature Cool (0) Movement Core (200) Ox3 Location -11/Scrapyard Parts ------- > --- POWER (1) -------- (None) > --- PROPULSION (2) --- (None) > --- UTILITY (2) ------ Medium Storage Unit Targeting Computer > --- WEAPON (2) ------- Light Assault Rifle > --- INVENTORY (10) --- Light Ion Engine Seismic Detector Light Armor Plating Peak State ------------ > --- POWER ------------ Light Ion Engine > --- PROPULSION ------- Aluminum Leg Aluminum Leg > --- UTILITY ---------- Medium Storage Unit Targeting Computer > --- WEAPON ----------- EM Pulse Gun Light Assault Rifle > --- INVENTORY -------- Wheel Wheel Light Armor Plating Small Laser [Rating: 7] Favorites ----------- Power Light Ion Engine Engine Light Ion Engine Propulsion Aluminum Leg Leg Aluminum Leg Wheel Wheel Utility Targeting Computer Storage Medium Storage Unit Processor Targeting Computer Protection Light Armor Plating Weapon Light Assault Rifle Energy Gun EM Pulse Gun Ballistic Gun Light Assault Rifle Build | -11 ------- Run | Yrd Slots Evolved . | . Power . | . Propulsion . | . Utility . | . Weapon . | . Parts Attached 11 | 11 Power 1 | 1 Engine 1 | 1 Core . | . Reactor . | . Propulsion 4 | 4 Treads . | . Leg 2 | 2 Wheel 2 | 2 Hover . | . Flight . | . Utility 3 | 3 Device . | . Storage 1 | 1 Processor 1 | 1 Hackware . | . Protection 1 | 1 Artifact . | . Weapon 3 | 3 Energy Gun 2 | 2 Energy Cannon . | . Ballistic Gun 1 | 1 Ballistic Cannon . | . Launcher . | . Special Weapon . | . Impact Weapon . | . Slashing Weapon . | . Piercing Weapon . | . Special Melee Weapon . | . Unidentified Prototypes . | . Parts Lost 5 | 5 Power 1 | 1 Propulsion 3 | 3 Utility . | . Weapon 1 | 1 Highest Loss Streak 5 | 5 To Critical Strikes 1 | 1 Average Backups 5 | 5 Power . | . Propulsion 1 | 1 Utility 1 | 1 Weapon 1 | 1 Tool/Special . | . Unused Backups 4 | 4 Power 1 | 1 Propulsion 2 | 2 Utility 1 | 1 Weapon . | . Tool/Special . | . Average Slot Usage (%) . | . Peak Build Rating 7 | 7 Average Rating 6 | 6 On Entrance . | . Naked Turns . | . Heaviest Build 16 | 16 Greatest Support 20 | 20 Greatest Overweight (x) 3 | 3 Average Overweight (x) . | . Largest Inventory Capacity 10 | 10 Average Capacity 9 | 9 Most Carried 7 | 7 Average Carried 5 | 5 Final Capacity 10 | 10 Final Carried 3 | 3 Class Distribution -------------------- None Dominant Class ---------------- None Resources | -11 ----------- Run | Yrd Matter Collected 286 | 286 Remotely . | . Salvage Created 118 | 118 Parts 7 | 7 Haulers Intercepted . | . Recyclers Shooed . | . Parts Field Recycled . | . Retrieved Matter . | . Parts Self-Destructed . | . Prevented . | . Kills | -11 ------- Run | Yrd Combat Hostiles Destroyed 4 | 4 Guns 4 | 4 Classes Destroyed 2 | 2 Tunneler 2 | 2 Assembled 4 | 4 Best Kill Streak 4 | 4 Combat Bots Only 4 | 4 Max Kills in Single Turn 1 | 1 Gunslinging . | . Exploded . | . Melee . | . Uniques/NPCs Destroyed . | . Combat | -11 -------- Run | Yrd Hostile Shots Fired 50 | 50 Missed 9 | 9 Hits 41 | 41 Melee 20 | 20 Projectile 21 | 21 AOE 4 | 4 Critical Strikes 3 | 3 Part Disruptions 1 | 1 Damage Taken 668 | 668 Core 259 | 259 Absorbed by Shields . | . Ignored by Resistances 394 | 394 Core Remaining (%) . | . Volleys Fired 24 | 24 Largest 2 | 2 Hottest 60 | 60 Shots Fired 34 | 34 Gun 34 | 34 Cannon . | . Launcher . | . Special . | . Kinetic 24 | 24 Thermal 2 | 2 Explosive . | . Electromagnetic 8 | 8 Robot Hit Streak 17 | 17 Robot Miss Streak 1 | 1 Penetration Max . | . Secondary Targets 2 | 2 Max Gunslinging Chain 1 | 1 Shots Hit Robots 31 | 31 Core Hits 15 | 15 Critical Kills . | . Critical Parts Destroyed . | . Critical Strikes . | . Melee Attacks . | . Impact . | . Slashing . | . Piercing . | . Sneak Attacks . | . Combat Hostiles . | . Follow-up Attacks . | . Damage Inflicted 293 | 293 Guns 287 | 287 Cannons . | . Explosions . | . Melee . | . Ramming 6 | 6 Kinetic 183 | 183 Thermal 23 | 23 Explosive . | . Electromagnetic 81 | 81 Impact . | . Slashing . | . Piercing . | . Highest Corruption . | . Average Corruption . | . Corruption Purged . | . Corruption Blocked . | . Overload Shots . | . Overflow Damage . | . Projectiles . | . Explosions . | . Melee . | . Knockbacks . | . Impact . | . Kinetic . | . Secondary . | . Self-Inflicted Damage 2 | 2 Shots . | . Rammed 2 | 2 Targets Rammed 2 | 2 Kicked . | . Crushed . | . Highest Temperature 40 | 40 Average Temperature 18 | 18 Received Heat Transfer 80 | 80 Siege Activations . | . Martial Activations . | . Shielding Activations . | . Robots Disrupted . | . Combat Hostiles . | . Robots Corrupted . | . Combat Hostiles . | . Parts Fried . | . Impact Corruptions . | . Robots Melted . | . Combat Hostiles . | . Parts Melted . | . Heat Transferred 50 | 50 Parts Sabotaged . | . Parts Stolen . | . Parts Stripped . | . Power Chain Reactions . | . Alert | -11 ------- Run | Yrd Maximum Alert Level . | . Low Security (%) 100 | 100 Level 1 . | . Level 2 . | . Level 3 . | . Level 4 . | . Level 5 . | . High Security . | . Max Security . | . Peak Influence 5 | 5 Initial . | . Average . | . Influence Increases 10 | 10 Destroy 0b10 Robot/NC 10 | 10 Influence Decreases 10 | 10 Time Decay 10 | 10 Squads Dispatched . | . Investigation . | . Extermination . | . Reinforcement . | . Assault . | . Garrison . | . Intercept . | . Searches Triggered . | . Construction Impeded . | . Haulers Reinforced . | . Active Scanning Responses . | . Cargo Convoy Interrupts . | . Stealth | -11 --------- Run | Yrd Distress Signals . | . Communications Jammed . | . Distress Signals . | . Times Spotted 22 | 22 Peak Tracking Total 14 | 14 Tactical Retreats 1 | 1 Traps | -11 ------- Run | Yrd Traps Triggered . | . Indirectly . | . Trap Hack Attempts . | . Triggered . | . Disarmed . | . Reprogrammed . | . Reused . | . Traps Extracted . | . Installed . | . Triggered . | . Machines | -11 ---------- Run | Yrd Machines Disabled . | . Max in Single Turn . | . Machines Repaired . | . Machines Dismantled . | . Machines Sabotaged . | . Overloaded Fab Kills . | . Hacking | -11 --------- Run | Yrd Machines Accessed . | . Terminals . | . Fabricators . | . Repair Stations . | . Recycling Units . | . Scanalyzers . | . Garrison Access . | . Total Hacks . | . Successful . | . Failed . | . Catastrophic . | . Database Lockouts . | . Manual . | . Terminals . | . Fabricators . | . Repair Stations . | . Recycling Units . | . Scanalyzers . | . Garrison Access . | . Terminal Hacks . | . Fabricator Hacks . | . Repair Station Hacks . | . Recycling Unit Hacks . | . Scanalyzer . | . Garrison Access Hacks . | . Unauthorized Hacks . | . Terminals . | . Fabricators . | . Repair Stations . | . Recycling Units . | . Scanalyzers . | . Garrison Access . | . Data Cores Recovered . | . Used . | . Hacking Detections . | . Full Trace Events . | . Feedback Events . | . Feedback Blocked . | . Robot Schematics Acquired . | . Robots Built . | . Authchips . | . Time . | . Total Robot Build Rating . | . Part Schematics Acquired . | . Parts Built . | . Authchips . | . Time . | . Total Part Build Rating . | . Parts Repaired . | . Time . | . Parts Recycled . | . Recycled Matter . | . Retrieved Matter . | . Retrieved Components . | . Parts Scanalyzed . | . Part Schematics Acquired . | . Parts Damaged . | . Bothacking | -11 ------------ Run | Yrd Used RIF Installer . | . Robots Hacked . | . Non-combat . | . Combat . | . Robot Hacks Applied . | . Relay Couplers Released . | . Fabnet Peak Effective % . | . Robots Rewired . | . Allies Hacked . | . Hacks Repelled . | . Allies | -11 -------- Run | Yrd Total Allies . | . Largest Group . | . Highest-Rated Group . | . Highest-Rated Ally . | . Total Orders . | . Ally Attacks . | . Total Damage . | . Kills . | . Allies Corrupted . | . Allies Melted . | . Intel | -11 ------- Run | Yrd Active Infowar (turns) . | . Robot Analysis Total . | . Derelict Logs Recovered . | . Drone Launches . | . Drone Recoveries . | . Exploration | -11 ------------- Run | Yrd Turns Passed 1790 | 1790 Spaces Moved 140 | 140 Core 8 | 8 Treads . | . Legs 129 | 129 Wheels 3 | 3 Hover . | . Flight . | . Fastest Speed 50 | 50 Average Speed 120 | 120 Slowest Speed 200 | 200 Overloaded Moves . | . Propulsion Burnouts . | . Robots Hopped . | . Potential Cave-ins . | . Cave-ins Triggered . | . Exploration Rate (%) 21 | 21 Regions Visited . Branch Regions . Pre-discovered Areas . | . Known Exits Taken . | . Unknown Exits Taken . | . Scrap Searched . | . Spaces Dug . | . Terrain Destroyed . | . Melee . | . Projectile . | . AOE . | . Terrain Rammed . | . Walls Destroyed . | . Machines Disabled . | . Actions | -11 --------- Run | Yrd Total 1729 | 1729 Wait 1541 | 1541 Move 140 | 140 Hop . | . Pick Up 8 | 8 Fast Attach 7 | 7 Attach 4 | 4 Detach 1 | 1 Swap . | . Drop 2 | 2 Fire 24 | 24 Melee . | . Ram 2 | 2 Kick . | . Crush . | . Escape Stasis . | . Rewire . | . Trap . | . Miscellaneous . | . Route ------- -11/Scrapyard (discovered 1 exit: *Mat) History --------- Turn | Location | Event 45 | -11/Scrapyard | Identified exit to Materials 45 | -11/Scrapyard | Discovered exit to Materials (range 14) 1737 | -11/Scrapyard | Assembled infested the area 1772 | -11/Scrapyard | Core integrity fell below 50% 1785 | -11/Scrapyard | Core integrity fell below 20% 1791 | -11/Scrapyard | Destroyed by D-53 Grenadier with Mini Grenade Launcher Last Messages --------------- 01771_ Lgt. Ion Engine destroyed. 01776_ Aluminum Leg severed. 01777_ as-08837 destroyed. 01777_ Switching to secondary target: as-97787. 01780_ Acquired 20 matter. 01781_ Sml. Laser severed. 01782_ Slammed into as-43907. 01783_ Acquired 15 matter. 01786_ Slammed into as-74366. 01786_ Wheel destroyed. 01786_ as-20119 destroyed. 01786_ as-15535 destroyed. 01786_ as-43907 destroyed. 01786_ as-21994 destroyed. 01786_ as-63851 destroyed. 01786_ as-45146 destroyed. 01787_ as-74366 destroyed. 01788_ as-20984 destroyed. 01789_ Critical hit (Destroy). 01789_ Wheel destroyed. Map ----- +----------------------------------------------------+ | | | | | | | ?????????????????????????????????????????????????? | | ?????????????????????????????????????????????????? | | ?????????????????????????????????????????????????? | | ?????????????????????????????????????????????????? | | ?????????????????????????????????????????????????? | | ??????????????????????????#??##??????????????????? | | ???????????????????????# ?"## ???????????????????? | | ??????????????????????? " #?????????????????? | | ??????????????????????? " ??????????????????? | | ??????????????????????? " ??????????????????? | | ???????????????????????# " ???????????????????? | | ???????????????????????# " ???????????????????? | | ???????????????????????# aa ##??????????????????? | | ??????????????????????## # ########???????????? | | ???????????############ #???????????? | | ???????????# #???????????? | | ???????????# #???????????? | | ???????????# = #???????????? | | ???????????# #???????????? | | ???????????# #???????????? | | ???????????# #???????????? | | ???????????#### ####### #???????????? | | ??????????????##??????# @ ##???????????? | | ??????????????????????## ########????????????? | | ???????????????????????# dd #???????????????????? | | ???????????????????????## #???????????????????? | | ????????????????????????## #???????????????????? | | ????????????????????????? #???????????????????? | | ????????????????????????? #???????????????????? | | ????????????????????????? ???????????????????? | | ????????????????????????? #??????????????????? | | ????????????????????????? #########?????????? | | ????????????????????????? #?????????? | | ????????????????????????? # #?????????? | | ????????????????????????? # # #?????????? | | ?????????????????????????# # # #?????????? | | ?????????????????????????# # # ########### | | ?????????????????????????# #?? # # # | | ????????????????????###### ##### ### # # | | ????????????? # # | | ?????????????# # # | | ????????????????##################### # # | | ????????????????????????????????????# # | | ????????????????????????????????????# # # | | ????????????????????????????????????# # # | | ?????????????????????????????????#### ########### | | ????????????????????##########???# #??????? | +----------------------------------------------------+ Best States ------------- Heat Dissipation 25 Energy Generation 10 Energy Capacity 125 Matter Stores 283 Matter Capacity 300 Sight Range 16 Terrain Scan Density 10 Resistance: KI 35 Resistance: TH 35 Resistance: EX 35 Resistance: EM 35 Resistance: I 35 Resistance: S 35 Resistance: P 35 Evasion (%) 55 Targeting Accuracy 5 Offensive Hacking 20 Item Schematics ----------------- None Robot Schematics ------------------ None Fabricated ------------ Nothing Repaired ---------- Nothing Alien Tech Used ----------------- None Achievements -------------- Curiosity Killed The Cat Challenges ------------ None Game ------ Seed DisruptionSchematicSpiker Manual? 0 Play Time 00:07:10 Cumulative 19.0 hours Start 2025.10.19 @ 05:50:54 End 2025.10.19 @ 05:54:41 Sessions 0 Manual Loads 0 Difficulty Explorer Special Mode None Game No. 32 Rogue 12 Adventurer 18 Explorer 2 Win Type - Total 0 Types 0/0/0/0/0/0/0/0/0/0 Lore% 13 Gallery% 32 Achievement% 30 Wizard Run 0 Options --------- Layout 0 ASCII 0 Keyboard 1 Movement Numpad Keybinds 0 Fullscreen 1 Font 18/X11 Map View 38x25 Zoom Use 27% Tactical HUD 1 Map Filters NONE Filters NONE Steam 1 RUN: 1d101fca-741c-4935-a17a-925d4a8c5004